lending/lending_fUSD_20250323
["ID","MTS","AMOUNT","RATE_DAILY","PERIOD"]
[356586377,1742735441073,-583.5,0.00013899,2]
[356586378,1742735441083,-1247.0,0.00013916,2]
[356586379,1742735441092,-150.27,0.00013927,2]
[356586380,1742735441101,-155.401642,0.00013943,2]
[356586381,1742735441110,-1247.0,0.00013943,2]
[356586382,1742735441120,-212.1,0.00013965,2]
[356586383,1742735441129,-1253.67324105,0.00013971,2]
[356586384,1742735441139,-150.27,0.00013987,2]
[356586385,1742735441149,-1008.34093188,0.00014022,2]
[356586386,1742735441158,-150.27,0.00014047,2]
[356586387,1742735441167,-500.0,0.00014131,2]
[356586388,1742735441176,-500.0,0.00014131,2]
[356586389,1742735441186,-158.8258547,0.00014186,2]
[356586390,1742735441195,-201.0,0.00014192,2]
[356586391,1742735441205,-2184.6920735,0.0001421,7]
[356586392,1742735441214,-212.1,0.00014572,2]
[356586393,1742735441223,-1004.78454773,0.000146,2]
[356586394,1742735441233,-543.0,0.000147,2]
[356586395,1742735441242,-205.795353,0.000149,2]
[356586396,1742735441251,-191.23264,0.000149,2]
[356586397,1742735441261,-191.232644,0.000149,2]
[356586398,1742735441270,-542.0,0.000149,2]
[356586399,1742735441279,-1430.0,0.000149,2]
[356586400,1742735441288,-4085.0,0.000149,2]
[356586401,1742735441298,-907.0,0.000149,2]
[356586402,1742735441307,-78090.3017495,0.000149,2]
[356586403,1742735441316,-1014.0,0.000149,2]
[356586404,1742735441325,-3941.0,0.000149,2]
[356586405,1742735441335,-151.0,0.000149,2]
[356586406,1742735441344,-1068.41953181,0.00014902,2]
[356586407,1742735441353,-416.65276642,0.00014971,2]
[356586408,1742735441366,-150.0,0.00015,2]
[356586409,1742735441381,-150.0,0.00015,2]
[356586410,1742735441390,-150.0,0.00015,2]
[356586411,1742735441400,-1281.0,0.00015,2]
[356586412,1742735441409,-642.0,0.00015,2]
[356586413,1742735441421,-2036.0,0.00015,2]
[356586414,1742735441430,-1420.0,0.00015,2]
[356586415,1742735441439,-572.0,0.00015,2]
[356586416,1742735441448,-787.0,0.00015,2]
[356586417,1742735441458,-1273.0,0.00015,2]
[356586418,1742735441468,-350.0,0.00015,2]
[356586419,1742735441480,-823.0,0.00015046,2]
[356586420,1742735441490,-300.0,0.00015068,2]
[356586421,1742735441500,-212.1,0.00015179,2]
[356586422,1742735441510,-1736.24,0.00015202,2]
[356586423,1742735441520,-1000.0,0.00015277,2]
[356586424,1742735441529,-583.5,0.00015289,2]
[356586425,1742735441539,-5000.0,0.00015314,2]
[356586426,1742735441548,-394.55,0.00015318,2]
[356586427,1742735441557,-212.1,0.00015786,2]
[356586428,1742735441567,-1692.13,0.00015839,2]
[356586429,1742735441577,-160.9,0.00016015,2]
[356586430,1742735441587,-212.1,0.00016393,2]
[356586431,1742735441597,-300.0,0.00016438,2]
[356586432,1742735441607,-228.63492544,0.00016523,2]
[356586433,1742735441617,-1000.0,0.00016666,2]
[356586434,1742735441627,-583.5,0.00016679,2]
[356586435,1742735441637,-394.55,0.00016849,2]
[356586436,1742735441647,-3932.89,0.00016922,2]
[356586437,1742735441656,-400.0,0.00017,2]
[356586438,1742735441666,-18518.3142446,0.000176,2]
[356586439,1742735441675,-218.0,0.0001768,2]
[356586440,1742735441685,-10317.35,0.00017728,2]
[356586441,1742735441695,-8419.64,0.00017728,2]
[356586442,1742735441705,-600.0,0.00017808,2]
[356586443,1742735441715,-153.0,0.00017861,2]
[356586444,1742735441726,-153.0,0.00017861,2]
[356586445,1742735441736,-153.0,0.00017861,2]
[356586446,1742735441746,-153.0,0.00017861,2]
[356586447,1742735441755,-153.0,0.00017865,2]
[356586448,1742735441765,-153.0,0.00017865,2]
[356586449,1742735441775,-153.0,0.00017865,2]
[356586450,1742735441784,-153.0,0.00017865,2]
[356586451,1742735441793,-153.0,0.00017865,2]
[356586452,1742735441803,-153.0,0.00017865,2]
[356586453,1742735441813,-153.0,0.00017877,2]
[356586454,1742735441822,-153.0,0.00017877,2]
[356586455,1742735441832,-153.0,0.00017877,2]
[356586456,1742735441842,-153.0,0.00017877,2]
[356586457,1742735441851,-153.0,0.00017881,2]
[356586458,1742735441860,-153.0,0.00017881,2]
[356586459,1742735441870,-153.0,0.00017881,2]
[356586460,1742735441880,-153.0,0.00017881,2]
[356586461,1742735441890,-153.0,0.00017881,2]
[356586462,1742735441899,-153.0,0.00017881,2]
[356586463,1742735441909,-153.0,0.00017894,2]
[356586464,1742735441918,-153.0,0.00017894,2]
[356586465,1742735441928,-153.0,0.00017894,2]
[356586466,1742735441939,-153.0,0.00017894,2]
[356586467,1742735441949,-153.0,0.00017898,2]
[356586468,1742735441958,-153.0,0.00017898,2]
[356586469,1742735441968,-153.0,0.00017898,2]
[356586470,1742735441981,-153.0,0.00017898,2]
[356586471,1742735441990,-153.0,0.00017898,2]
[356586472,1742735442000,-153.0,0.00017898,2]
[356586473,1742735442010,-542.0,0.000179,2]
[356586474,1742735442019,-1430.0,0.000179,2]
[356586475,1742735442030,-4085.0,0.000179,2]
[356586476,1742735442039,-907.0,0.000179,2]
[356586477,1742735442048,-78090.3017495,0.000179,2]
[356586478,1742735442060,-1014.0,0.000179,2]
[356586479,1742735442069,-3941.0,0.000179,2]
[356586480,1742735442079,-151.0,0.000179,2]
[356586481,1742735442088,-153.0,0.00017911,2]
[356586482,1742735442098,-153.0,0.00017914,2]
[356586483,1742735442108,-153.0,0.00017914,2]
[356586484,1742735442118,-153.0,0.00017914,2]
[356586485,1742735442128,-153.0,0.00017914,2]
[356586486,1742735442137,-153.0,0.00017914,2]
[356586487,1742735442146,-153.0,0.00017914,2]
[356586488,1742735442155,-153.0,0.00017927,2]
[356586489,1742735442165,-153.0,0.00017927,2]
[356586490,1742735442174,-153.0,0.00017927,2]
[356586491,1742735442183,-153.0,0.00017927,2]
[356586492,1742735442193,-153.0,0.00017927,2]
[356586493,1742735442203,-153.0,0.00017927,2]
[356586494,1742735442212,-153.0,0.00017931,2]
[356586495,1742735442222,-153.0,0.00017931,2]
[356586496,1742735442231,-153.0,0.00017931,2]
[356586497,1742735442241,-153.0,0.00017931,2]
[356586498,1742735442250,-153.0,0.00017931,2]
[356586499,1742735442260,-153.0,0.00017931,2]
[356586500,1742735442269,-153.0,0.00017947,2]
[356586501,1742735442279,-2564.67,0.00018,2]
[356586502,1742735442289,-8840.13,0.00018,2]
[356586503,1742735442298,-1281.0,0.00018,2]
[356586504,1742735442308,-642.0,0.00018,2]
[356586505,1742735442318,-2036.0,0.00018,2]
[356586506,1742735442327,-1420.0,0.00018,2]
[356586507,1742735442336,-572.0,0.00018,2]
[356586508,1742735442345,-787.0,0.00018,2]
[356586509,1742735442354,-1273.0,0.00018,2]
[356586510,1742735442363,-416.65276642,0.00018043,2]
[356586511,1742735442373,-200.0,0.00018082,2]
[356586512,1742735442383,-1692.13,0.00018103,2]
[356586513,1742735442392,-82964.91,0.00018356,2]
[356586514,1742735442401,-394.55,0.00018381,2]
[356586515,1742735442410,-218.0,0.0001843,2]
[356586516,1742735442419,-153.94,0.000186,2]
[356586517,1742735442427,-2564.67,0.000188,2]
[356586518,1742735442436,-8840.13,0.000188,2]
[356586519,1742735442445,-2564.67,0.000189,2]
[356586520,1742735442454,-2564.67,0.000189,2]
[356586521,1742735442466,-8840.13,0.000189,2]
[356586522,1742735442476,-8840.13,0.000189,2]
[356586523,1742735442486,-2564.67,0.00019,2]
[356586524,1742735442496,-8840.13,0.00019,2]
[356586525,1742735442505,-30812.79540247,0.00019,2]
[356586526,1742735442515,-450.0,0.00019,2]
[356586527,1742735442524,-2594.80589923,0.00019,2]
[356586528,1742735442534,-671.58963935,0.00019,2]
[356586529,1742735442544,-218.0,0.0001917,2]
[356586530,1742735442553,-511.04166742,0.000192,2]
[356586531,1742735442563,-154.3293369,0.00019611,2]
[356586532,1742735442572,-374.3997696,0.00019611,2]
[356586533,1742735442582,-18064.92755861,0.0001967,2]
[356586534,1742735442591,-1002.07185144,0.0001983,2]
[356586535,1742735442600,-222.0,0.0001983,2]
[356586536,1742735442610,-218.0,0.0001992,2]
[356586537,1742735442620,-216266.3198963,0.0001993,2]
[356586538,1742735442630,-514.0,0.0001997,2]
[356586539,1742735442640,-500.0,0.00019973,2]
[356586540,1742735442650,-500.0,0.00019973,2]
[356586541,1742735442659,-501.59606833,0.00019973,2]
[356586542,1742735442669,-500.49506334,0.00019973,2]
[356586544,1742735442678,-498.71851341,0.00019973,2]
[356586545,1742735442687,-505.19790714,0.00019973,2]
[356586547,1742735442697,-500.0,0.00019973,2]
[356586549,1742735442706,-17428.1386623,0.00019975,2]
[356586551,1742735442715,-9996.0722306,0.00019975,2]
[356586553,1742735442725,-11734.0912729,0.00019975,2]
[356586555,1742735442736,-1722.4223217,0.00019986,2]
[356586557,1742735442746,-14609.49897893,0.00019989,2]
[356586558,1742735442755,-32719.55080568,0.00019999,2]
[356586559,1742735442765,-220.37331688,0.00019999,5]
[356586560,1742735442774,-3950.0,0.0002,2]
[356586561,1742735442783,-1244.66174324,0.0002,2]
[356586562,1742735442793,-11775.61233877,0.0002,2]
[356586563,1742735442802,-1004.27116155,0.0002,2]
[356586564,1742735442811,-1734.11730868,0.0002,2]
[356586565,1742735442821,-24730.92596503,0.0002,2]
[356586566,1742735442830,-382.0,0.0002,2]
[356586567,1742735442840,-1296.03000004,0.0002,2]
[356586568,1742735442850,-7500.0,0.0002,2]
[356586569,1742735442860,-3848.90667205,0.0002,2]
[356586570,1742735442870,-85255.91944972,0.0002,4]
[356586571,1742735443000,-1401.85779765,0.0002,5]
[356586572,1742735443010,-8110.40435346,0.0002,2]
[356586573,1742735443021,-299.55307335,0.0002,2]
[356586574,1742735443030,-10000.0,0.0002,2]
[356586575,1742735443040,-1474.64577299,0.0002,2]
[356586576,1742735443049,-4279.76039934,0.0002,2]
[356586577,1742735443060,-50000.0,0.0002,2]
[356586578,1742735443070,-398890.03508406,0.0002,4]
[356586579,1742735443080,-164.90925,0.0002,2]
[356586580,1742735443090,-216.0,0.0002,2]
[356586581,1742735443099,-216.0,0.0002,2]
[356586582,1742735443109,-216.0,0.0002,2]
[356586583,1742735443118,-216.0,0.0002,2]
[356586584,1742735443127,-216.0,0.0002,2]
[356586585,1742735443137,-216.0,0.0002,2]
[356586586,1742735443147,-216.0,0.0002,2]
[356586587,1742735443156,-216.0,0.0002,2]
[356586588,1742735443166,-216.0,0.0002,2]
[356586589,1742735443175,-216.0,0.0002,2]
[356586590,1742735443185,-216.0,0.0002,2]
[356586591,1742735443194,-218.0,0.0002,2]
[356586592,1742735443204,-218.0,0.0002,2]
[356586593,1742735443213,-218.0,0.0002,2]
[356586594,1742735443223,-218.0,0.0002,2]
[356586595,1742735443232,-218.0,0.0002,2]
[356586596,1742735443241,-218.0,0.0002,2]
[356586597,1742735443251,-218.0,0.0002,2]
[356586598,1742735443260,-218.0,0.0002,2]
[356586599,1742735443270,-218.0,0.0002,2]
[356586600,1742735443279,-218.0,0.0002,2]
[356586601,1742735443288,-218.0,0.0002,2]
[356586602,1742735443298,-218.0,0.0002,2]
[356586603,1742735443308,-218.0,0.0002,2]
[356586604,1742735443317,-218.0,0.0002,2]
[356586605,1742735443327,-218.0,0.0002,2]
[356586606,1742735443336,-218.0,0.0002,2]
[356586607,1742735443346,-207.0,0.0002,2]
[356586608,1742735443355,-207.0,0.0002,2]
[356586609,1742735443365,-207.0,0.0002,2]
[356586610,1742735443376,-2000.0,0.0002,4]
[356586611,1742735443386,-8946.91262706,0.0002001,2]
[356586612,1742735443396,-4933.02941994,0.0002001,2]
[356586613,1742735443405,-5772.0,0.0002001,2]
[356586614,1742735443415,-1665.25988058,0.0002015,2]
[356586615,1742735443425,-1692.13,0.00020367,2]
[356586616,1742735443434,-1777.84042312,0.0002059,2]
[356586617,1742735443444,-21804.97918462,0.000207,2]
[356586618,1742735443454,-7886.89326319,0.000209,30]
[356586619,1742735443463,-542.0,0.000209,2]
[356586620,1742735443473,-1430.0,0.000209,2]
[356586621,1742735443482,-4085.0,0.000209,2]
[356586622,1742735443492,-907.0,0.000209,2]
[356586623,1742735443501,-739.0,0.000209,2]
[356586624,1742735443511,-78090.3017495,0.000209,2]
[356586625,1742735443521,-752.0,0.000209,2]
[356586626,1742735443530,-700.0,0.000209,2]
[356586627,1742735443540,-718.951,0.000209,2]
[356586628,1742735443549,-3941.0,0.000209,2]
[356586629,1742735443559,-151.0,0.000209,2]
[356586630,1742735443569,-20000.0,0.00021,2]
[356586631,1742735443579,-1148.54058651,0.00021,2]
[356586632,1742735443588,-189.56092456,0.00021,2]
[356586633,1742735443597,-619.0,0.00021,2]
[356586634,1742735443607,-1281.0,0.00021,2]
[356586635,1742735443616,-642.0,0.00021,2]
[356586636,1742735443626,-2036.0,0.00021,2]
[356586637,1742735443635,-1420.0,0.00021,2]
[356586638,1742735443645,-572.0,0.00021,2]
[356586639,1742735443655,-787.0,0.00021,2]
[356586640,1742735443664,-1273.0,0.00021,2]
[356586641,1742735443674,-500.0,0.00021,2]
[356586642,1742735443684,-2000.0,0.00021,4]
[356586643,1742735443694,-416.65276642,0.00021114,2]
[356586644,1742735443703,-1952.64602125,0.00021177,2]
[356586645,1742735443713,-7273.20634829,0.000217,2]
[356586646,1742735443723,-378.0,0.0002172,2]
[356586647,1742735443733,-5434.0,0.000218,2]
[356586648,1742735443743,-162.73,0.00021917,2]
[356586649,1742735443753,-5107.79126668,0.00022,2]
[356586650,1742735443762,-246.38880427,0.00022,2]
[356586651,1742735443775,-500.0,0.00022,2]
[356586652,1742735443785,-150.0,0.00022,7]
[356586653,1742735443795,-2000.0,0.00022,4]
[356586654,1742735443804,-230.90214643,0.0002211,2]
[356586655,1742735443814,-34064.462389,0.000225,2]
[356586656,1742735443823,-1692.13,0.00022631,2]
[356586657,1742735443833,-502.52952231,0.0002271,2]
[356586658,1742735443843,-152.0,0.00022738,3]
[356586659,1742735443853,-200.0,0.00023,2]
[356586660,1742735443863,-550.0,0.00023,2]
[356586661,1742735443873,-2000.0,0.00023,4]
[356586662,1742735443882,-401.10611012,0.0002301,2]
[356586663,1742735443891,-300.0,0.00023039,2]
[356586664,1742735443901,-300.56346183,0.00023039,2]
[356586665,1742735443911,-162.73,0.00023287,2]
[356586666,1742735443920,-200.0,0.000235,2]
[356586667,1742735443929,-587.20027127,0.0002361,7]
[356586668,1742735443939,-18518.31,0.000237,2]
[356586669,1742735443948,-1005.42,0.00023836,2]
[356586670,1742735443958,-13314.2621943,0.00023884,2]
[356586671,1742735443967,-7636.5198356,0.00023884,2]
[356586672,1742735443978,-8964.2830394,0.00023884,2]
[356586673,1742735443989,-542.0,0.000239,2]
[356586674,1742735443999,-1430.0,0.000239,2]
[356586675,1742735444008,-4085.0,0.000239,2]
[356586676,1742735444019,-907.0,0.000239,2]
[356586677,1742735444028,-78090.3017495,0.000239,2]
[356586678,1742735444037,-3941.0,0.000239,2]
[356586679,1742735444047,-151.0,0.000239,2]
[356586680,1742735444057,-152.0,0.00023934,4]
[356586681,1742735444067,-979.56731712,0.00024,2]
[356586682,1742735444077,-156.03465977,0.00024,20]
[356586683,1742735444087,-73246.14336013,0.00024,7]
[356586684,1742735444097,-1281.0,0.00024,2]
[356586685,1742735444106,-642.0,0.00024,2]
[356586686,1742735444116,-2036.0,0.00024,2]
[356586687,1742735444125,-1420.0,0.00024,2]
[356586688,1742735444135,-572.0,0.00024,2]
[356586689,1742735444145,-787.0,0.00024,2]
[356586690,1742735444154,-1273.0,0.00024,2]
[356586691,1742735444163,-2000.0,0.00024,4]
[356586692,1742735444173,-781.82782047,0.0002402,2]
[356586693,1742735444182,-416.65276642,0.00024186,2]
[356586694,1742735444192,-404.73845699,0.0002421,2]
[356586695,1742735444201,-3546.48651583,0.0002421,2]
[356586696,1742735444211,-1100.66130075,0.000245,2]
[356586697,1742735444220,-1130.82479578,0.000245,2]
[356586698,1742735444230,-162.73,0.00024657,2]
[356586699,1742735444239,-1000.0,0.00024658,2]
[356586700,1742735444248,-155.42,0.00024712,30]
[356586701,1742735444258,-1722.4223217,0.00024783,2]
[356586702,1742735444269,-156.75480123,0.000248,2]
[356586703,1742735444278,-755.83203394,0.000248,2]
[356586704,1742735444287,-48968.24862983,0.000248,2]
[356586705,1742735444297,-1692.13,0.00024895,2]
[356586706,1742735444306,-619960.793946,0.000249,3]
[356586707,1742735444315,-233.85412653,0.000249,2]
[356586708,1742735444324,-233.85412653,0.000249,2]
[356586709,1742735444333,-199.13278705,0.00025,2]
[356586710,1742735444343,-1597.17165726,0.00025,2]
[356586711,1742735444352,-255.3415155,0.00025,2]
[356586712,1742735444362,-174.15826627,0.00025,2]
[356586713,1742735444371,-200.0,0.00025,2]
[356586714,1742735444380,-2919.66826077,0.00025,2]
[356586715,1742735444389,-1021.65231863,0.00025,2]
[356586716,1742735444399,-160.53264765,0.00025,2]
[356586717,1742735444408,-600.0,0.00025,2]
[356586718,1742735444417,-2000.0,0.00025,4]
[356586719,1742735444427,-408.78,0.00025,2]
[356586720,1742735444436,-408.78,0.00025,2]
[356586721,1742735444445,-11266.3335721,0.0002501,2]
[356586722,1742735444455,-3242.46118168,0.000251,2]
[356586723,1742735444465,-500.0,0.000251,2]
[356586724,1742735444474,-152.0,0.00025131,5]
[356586725,1742735444484,-1002.0718514,0.00025175,2]
[356586726,1742735444493,-280.0,0.000253,10]
[356586727,1742735444502,-213.9435019,0.00025452,2]
[356586728,1742735444511,-1000.0,0.00025452,2]
[356586729,1742735444521,-1000.0,0.00025452,2]
[356586730,1742735444530,-575.37326236,0.0002599,2]
[356586731,1742735444539,-4334.13227699,0.00026,2]
[356586732,1742735444548,-4433.65,0.00026,2]
[356586733,1742735444557,-2000.0,0.00026,4]
[356586734,1742735444567,-162.73,0.00026027,2]
[356586735,1742735444576,-4433.0,0.000263,5]
[356586736,1742735444586,-152.0,0.00026327,6]
[356586737,1742735444595,-26323.37334216,0.000264,2]
[356586738,1742735444604,-557.49,0.00026849,2]
[356586739,1742735444613,-164.0,0.00026849,2]
[356586740,1742735444623,-9200.3857262,0.00026882,2]
[356586741,1742735444632,-5276.9674405,0.00026882,2]
[356586742,1742735444641,-6194.4748059,0.00026882,2]
[356586743,1742735444651,-542.0,0.000269,2]
[356586744,1742735444660,-1430.0,0.000269,2]
[356586745,1742735444669,-4085.0,0.000269,2]
[356586746,1742735444680,-907.0,0.000269,2]
[356586747,1742735444689,-78090.3017495,0.000269,2]
[356586748,1742735444699,-3941.0,0.000269,2]
[356586749,1742735444708,-151.0,0.000269,2]
[356586750,1742735444718,-250.0,0.00027,2]
[356586751,1742735444729,-992.39050509,0.00027,2]
[356586752,1742735444739,-180.0,0.00027,30]
[356586753,1742735444750,-1563.563502,0.00027,2]
[356586754,1742735444760,-1281.0,0.00027,2]
[356586755,1742735444769,-642.0,0.00027,2]
[356586756,1742735444778,-2036.0,0.00027,2]
[356586757,1742735444787,-1420.0,0.00027,2]
[356586758,1742735444797,-572.0,0.00027,2]
[356586759,1742735444806,-787.0,0.00027,2]
[356586760,1742735444815,-1273.0,0.00027,2]
[356586761,1742735444825,-650.0,0.00027,2]
[356586762,1742735444834,-2000.0,0.00027,4]
[356586763,1742735444843,-304.53660165,0.0002705,2]
[356586764,1742735444853,-1692.13,0.00027159,2]
[356586765,1742735444862,-416.65276642,0.00027257,2]
[356586766,1742735444871,-210.90422501,0.0002736,120]
[356586767,1742735444881,-162.73,0.00027397,2]
[356586768,1742735444890,-891.0,0.00027397,2]
[356586769,1742735444900,-5797.99,0.00027397,2]
[356586770,1742735444909,-151.0,0.00027397,7]
[356586771,1742735444919,-151.0,0.00027397,7]
[356586772,1742735444928,-151.0,0.00027397,7]
[356586773,1742735444938,-151.0,0.00027397,7]
[356586774,1742735444947,-151.0,0.00027397,7]
[356586775,1742735444956,-151.0,0.00027397,7]
[356586776,1742735444965,-151.0,0.00027397,7]
[356586777,1742735444975,-151.0,0.00027397,7]
[356586778,1742735444989,-151.0,0.00027397,7]
[356586779,1742735444998,-151.0,0.00027397,7]
[356586780,1742735445007,-151.0,0.00027397,7]
[356586781,1742735445017,-151.0,0.00027397,7]
[356586782,1742735445027,-288.0,0.00027397,7]
[356586783,1742735445037,-891.0,0.00027424,2]
[356586784,1742735445046,-891.0,0.00027452,2]
[356586785,1742735445056,-891.0,0.00027479,2]
[356586786,1742735445066,-192.71867191,0.000275,2]
[356586787,1742735445075,-7251.35441643,0.000275,2]
[356586788,1742735445085,-891.0,0.00027507,2]
[356586789,1742735445094,-152.0,0.00027524,7]
[356586790,1742735445103,-891.0,0.00027534,2]
[356586791,1742735445113,-891.0,0.00027561,2]
[356586792,1742735445125,-891.0,0.00027589,2]
[356586793,1742735445135,-891.0,0.00027616,2]
[356586794,1742735445144,-891.0,0.00027644,2]
[356586795,1742735445153,-891.0,0.00027671,2]
[356586796,1742735445163,-891.0,0.00027698,2]
[356586797,1742735445172,-891.0,0.00027726,2]
[356586798,1742735445182,-891.0,0.00027753,2]
[356586799,1742735445191,-891.0,0.00027781,2]
[356586800,1742735445200,-891.0,0.00027808,2]
[356586801,1742735445210,-391.0,0.0002783,15]
[356586802,1742735445220,-891.0,0.00027835,2]
[356586803,1742735445229,-891.0,0.00027863,2]
[356586804,1742735445239,-891.0,0.0002789,2]
[356586805,1742735445248,-908.86159872,0.00027918,2]
[356586806,1742735445258,-2000.0,0.00028,4]
[356586807,1742735445267,-265.53,0.00028158,2]
[356586808,1742735445277,-411.97,0.00028158,2]
[356586809,1742735445287,-152.0,0.0002872,8]
[356586810,1742735445296,-162.73,0.00028767,2]
[356586811,1742735445306,-5797.99,0.00028767,2]
[356586812,1742735445315,-1001.16357337,0.00029,2]
[356586813,1742735445325,-2680.33255031,0.00029,2]
[356586814,1742735445335,-700.0,0.00029,2]
[356586815,1742735445344,-2000.0,0.00029,4]
[356586816,1742735445354,-150.0,0.00029391,30]
[356586817,1742735445365,-164.93417089,0.00029391,30]
[356586818,1742735445375,-342.45712795,0.00029391,30]
[356586819,1742735445384,-1692.13,0.00029423,2]
[356586820,1742735445394,-542.0,0.000299,2]
[356586821,1742735445404,-1430.0,0.000299,2]
[356586822,1742735445413,-4085.0,0.000299,2]
[356586823,1742735445531,-907.0,0.000299,2]
[356586824,1742735445541,-78090.3017495,0.000299,2]
[356586825,1742735445550,-3941.0,0.000299,2]
[356586826,1742735445559,-151.0,0.000299,2]
[356586827,1742735445569,-152.0,0.00029917,9]
[356586828,1742735445579,-227.55104176,0.0002999,2]
[356586829,1742735445588,-2266.93636581,0.0003,2]
[356586830,1742735445598,-1740.12559943,0.0003,2]
[356586831,1742735445607,-1536.5775122,0.0003,2]
[356586832,1742735445616,-676.0,0.0003,3]
[356586833,1742735445626,-159.35159628,0.0003,60]
[356586834,1742735445635,-1204.51420839,0.0003,2]
[356586835,1742735445645,-2447.77803245,0.0003,2]
[356586836,1742735445654,-400.0,0.0003,2]
[356586837,1742735445663,-1281.0,0.0003,2]
[356586838,1742735445672,-642.0,0.0003,2]
[356586839,1742735445683,-2036.0,0.0003,2]
[356586840,1742735445692,-1420.0,0.0003,2]
[356586841,1742735445701,-572.0,0.0003,2]
[356586842,1742735445711,-787.0,0.0003,2]
[356586843,1742735445720,-1273.0,0.0003,2]
[356586844,1742735445729,-169.0,0.0003,2]
[356586845,1742735445739,-162.73,0.00030136,2]
[356586846,1742735445748,-5797.99,0.00030137,2]
[356586847,1742735445757,-337.3981407,0.00030137,2]
[356586848,1742735445767,-337.3981407,0.00030247,2]
[356586849,1742735445776,-150.0,0.0003032,2]
[356586850,1742735445785,-416.65276642,0.00030329,2]
[356586851,1742735445795,-337.3981407,0.00030384,2]
[356586852,1742735445804,-150.0,0.00030384,2]
[356586853,1742735445813,-300.0,0.00030455,2]
[356586854,1742735445823,-337.3981407,0.00030493,2]
[356586855,1742735445832,-483.98153775,0.000305,7]
[356586856,1742735445841,-1002.0718514,0.0003052,2]
[356586857,1742735445850,-150.0,0.00030592,2]
[356586858,1742735445860,-181.0,0.00030613,30]
[356586859,1742735445870,-337.3981407,0.0003063,2]
[356586860,1742735445879,-150.0,0.00030642,2]
[356586861,1742735445888,-500.0,0.00030688,7]
[356586862,1742735445898,-500.0,0.00030688,7]
[356586863,1742735445907,-209.68,0.00030688,7]
[356586864,1742735445917,-500.0,0.00030688,7]
[356586865,1742735445928,-500.0,0.00030688,7]
[356586866,1742735445937,-500.0,0.00030688,7]
[356586867,1742735445946,-500.0,0.00030688,7]
[356586868,1742735445955,-500.0,0.00030688,7]
[356586869,1742735445965,-500.0,0.00030688,7]
[356586870,1742735445976,-500.0,0.00030688,7]
[356586871,1742735445987,-500.0,0.00030688,7]
[356586872,1742735445997,-500.0,0.00030688,7]
[356586873,1742735446006,-620.51,0.00030688,7]
[356586874,1742735446015,-337.3981407,0.0003074,2]
[356586875,1742735446025,-150.0,0.00030779,2]
[356586876,1742735446034,-337.3981407,0.00030849,2]
[356586877,1742735446044,-150.0,0.00030895,2]
[356586878,1742735446053,-680.00153809,0.000309,2]
[356586879,1742735446064,-150.0,0.00030921,2]
[356586880,1742735446074,-150.0,0.00030979,2]
[356586881,1742735446083,-337.3981407,0.00030986,2]
[356586882,1742735446092,-150.0,0.00030988,2]
[356586883,1742735446102,-500.0,0.00031,2]